bitfinex/quotes_BTCUSD_20220103
["timestamp","ask_amount","ask_price","bid_price","bid_amount"]
[1641172990616,3.74684908,47001.0,47000.0,0.12024358]
[1641172991019,2.62584908,47001.0,47000.0,0.12024358]
[1641172991221,2.290451,47001.0,47000.0,0.12024358]
[1641172991421,1.94446,47001.0,47000.0,0.00668317]
[1641172992021,1.94446,47001.0,47000.0,0.05408317]
[1641172992221,1.93338109,47001.0,47000.0,0.05408317]
[1641172993576,1.93338109,47001.0,47000.0,0.33464716]
[1641172994564,1.93338109,47001.0,47000.0,0.05408317]
[1641172994966,2.32937209,47001.0,47000.0,0.00668317]
[1641172995366,2.32937209,47001.0,47000.0,0.00679699]
[1641172997913,3.45037209,47001.0,47000.0,0.00679699]
[1641172999524,3.44037209,47001.0,47000.0,0.00679699]
[1641172999718,2.31937209,47001.0,47000.0,0.00679699]
[1641173000619,3.44037209,47001.0,47000.0,0.00679699]
[1641173004167,2.31937209,47001.0,47000.0,0.00679699]
[1641173004370,3.44037209,47001.0,47000.0,0.00679699]
[1641173004832,1.506991,47001.0,47000.0,0.00679699]
[1641173006823,1.606991,47001.0,47000.0,0.00679699]
[1641173007622,1.506991,47001.0,47000.0,0.00679699]
[1641173008321,1.606991,47001.0,47000.0,0.00679699]
[1641173008553,0.375991,47001.0,47000.0,0.00679699]
[1641173009955,1.78081762,47001.0,47000.0,0.00679699]
[1641173010558,1.496991,47001.0,47000.0,0.00679699]
[1641173010958,0.375991,47001.0,47000.0,0.00679699]
[1641173012409,0.03,47001.0,46996.0,0.04630905]
[1641173012605,0.03,47001.0,46999.0,0.053186]
[1641173013605,0.03,47001.0,47000.0,0.27554938]
[1641173013806,0.03,47001.0,47000.0,0.27589907]
[1641173015607,0.03,47001.0,46999.0,0.053186]
[1641173015807,0.083184,47001.0,46999.0,0.053186]
[1641173016272,0.345991,47000.0,46999.0,0.053186]
[1641173016471,0.083184,47001.0,46999.0,0.053186]
[1641173016671,0.345991,47000.0,46999.0,0.053186]
[1641173016873,0.083184,47001.0,46999.0,0.053186]
[1641173017172,0.345991,47000.0,46999.0,0.053186]
[1641173017877,0.083184,47001.0,46999.0,0.053186]
[1641173018074,0.03,47001.0,46999.0,0.053186]
[1641173019377,0.025,47001.0,46999.0,0.053186]
[1641173020615,0.131367,47001.0,46999.0,0.053186]
[1641173020817,0.345991,47000.0,46999.0,0.053186]
[1641173029220,0.23773855,47001.0,46999.0,0.053186]
[1641173029423,0.13136527,47001.0,46999.0,0.053186]
[1641173029824,0.025,47001.0,47000.0,0.0474]
[1641173030024,0.13489804,47006.0,47000.0,0.0474]
[1641173030227,0.13489804,47006.0,47001.0,0.053174]
[1641173030426,7.303e-05,47004.0,47002.0,0.0474]
[1641173030628,7.303e-05,47004.0,47003.0,0.345991]
[1641173030825,7.303e-05,47004.0,47003.0,0.0474]
[1641173052834,7.303e-05,47004.0,47003.0,0.2574]
[1641173055161,7.303e-05,47004.0,47003.0,0.21]
[1641173057512,7.303e-05,47004.0,47003.0,0.20888539]
[1641173059717,0.32193792,47004.0,47003.0,0.20888539]
[1641173059914,0.7709782,47004.0,47003.0,0.20888539]
[1641173060114,0.66792892,47004.0,47003.0,0.20888539]
[1641173061067,0.66785589,47004.0,47003.0,0.20888539]
[1641173063170,0.395991,47004.0,47003.0,0.20888539]
[1641173063567,0.67137247,47004.0,47003.0,0.20888539]
[1641173064467,0.395991,47004.0,47003.0,0.20888539]
[1641173065114,0.21270881,47005.0,47003.0,0.20888539]
[1641173065914,0.21270881,47005.0,47003.0,0.19986539]
[1641173066113,0.21270881,47005.0,47003.0,0.19084539]
[1641173066614,0.21270881,47005.0,47003.0,0.18182539]
[1641173066817,0.21270881,47005.0,47003.0,0.17280539]
[1641173067413,0.21270881,47005.0,47003.0,0.15476539]
[1641173067615,0.21270881,47005.0,47003.0,0.14574539]
[1641173067913,0.21270881,47005.0,47003.0,0.13672539]
[1641173068116,0.21270881,47005.0,47003.0,0.11868539]
[1641173068414,0.21270881,47005.0,47003.0,0.10966539]
[1641173068659,0.21270881,47005.0,47003.0,0.10064539]
[1641173068860,0.345991,47004.0,47003.0,0.10064539]
[1641173069060,0.345991,47004.0,47003.0,0.09162539]
[1641173069462,0.345991,47004.0,47003.0,0.08260539]
[1641173072163,0.21270881,47005.0,47003.0,0.08260539]
[1641173072819,0.345991,47004.0,47003.0,0.08260539]
[1641173073216,0.345991,47004.0,47003.0,0.07989939]
[1641173073818,0.61857554,47004.0,47003.0,0.07989939]
[1641173076777,0.66857554,47004.0,47003.0,0.07989939]
[1641173076978,0.76737381,47004.0,47003.0,0.07989939]
[1641173078881,1.93837381,47004.0,47003.0,0.07989939]
[1641173080013,0.81737381,47004.0,47003.0,0.07989939]
[1641173081416,0.54478927,47004.0,47003.0,0.07989939]
[1641173083313,1.04478927,47004.0,47003.0,0.07989939]
[1641173083770,2.48357131,47004.0,47003.0,0.07989939]
[1641173084172,1.36257131,47004.0,47003.0,0.07989939]
[1641173084571,2.48357131,47004.0,47003.0,0.07989939]
[1641173084772,2.62017883,47004.0,47003.0,0.07989939]
[1641173084975,2.48357131,47004.0,47003.0,0.07989939]
[1641173085976,1.49917883,47004.0,47003.0,0.07989939]
[1641173086678,2.62017883,47004.0,47003.0,0.07989939]
[1641173087819,1.49917883,47004.0,47003.0,0.07989939]
[1641173088221,2.62017883,47004.0,47003.0,0.07989939]
[1641173088521,1.49917883,47004.0,47003.0,0.07989939]
[1641173089120,2.62017883,47004.0,47003.0,0.07989939]
[1641173089522,1.49917883,47004.0,47003.0,0.07989939]
[1641173090722,2.62017883,47004.0,47003.0,0.07989939]
[1641173092475,4.55355983,47004.0,47003.0,0.07989939]
[1641173093077,3.43255983,47004.0,47003.0,0.07989939]
[1641173093475,3.11477779,47004.0,47003.0,0.07989939]
[1641173093676,4.23577779,47004.0,47003.0,0.07989939]
[1641173093879,4.13697952,47004.0,47003.0,0.07989939]
[1641173094077,4.23697952,47004.0,47003.0,0.07989939]
[1641173094925,3.11597952,47004.0,47003.0,0.07989939]
[1641173095330,4.23697952,47004.0,47003.0,0.07989939]
[1641173096328,4.23697952,47004.0,47003.0,0.07489939]
[1641173096927,3.11597952,47004.0,47003.0,0.07489939]
[1641173098129,4.23697952,47004.0,47003.0,0.07489939]
[1641173099684,3.73697952,47004.0,47003.0,0.07489939]
[1641173100785,4.23697952,47004.0,47003.0,0.07489939]
[1641173104320,4.23705255,47004.0,47003.0,0.07489939]
[1641173107998,4.28806255,47004.0,47003.0,0.07489939]
[1641173109199,3.78806255,47004.0,47003.0,0.07489939]
[1641173110039,4.28806255,47004.0,47003.0,0.07489939]
[1641173111240,3.16706255,47004.0,47003.0,0.07489939]
[1641173111640,4.28806255,47004.0,47003.0,0.07489939]
[1641173112846,1.17,47003.0,46995.0,0.00044]
[1641173113043,1.17,47003.0,46994.0,0.00044]
[1641173113044,0.10639803,47000.0,46994.0,0.00033]
[1641173113245,1.515991,46999.0,46993.0,0.003157]
[1641173113445,2.736991,46999.0,46993.0,0.003157]
[1641173113881,0.09779428,46997.0,46993.0,0.003157]
[1641173114084,0.69333026,46996.0,46993.0,0.003157]
[1641173114382,0.49309074,46995.0,46993.0,0.003157]
[1641173114581,0.395991,46994.0,46993.0,0.003157]
[1641173115982,0.53,46993.0,46991.0,0.001147]
[1641173116187,0.39919001,46992.0,46991.0,0.001147]
[1641173116384,0.44919001,46992.0,46991.0,0.001147]
[1641173116583,0.81211682,46992.0,46991.0,0.001147]
[1641173116983,0.66529024,46992.0,46991.0,0.001147]
[1641173117635,0.65529024,46992.0,46991.0,0.001147]
[1641173117839,0.63211682,46992.0,46991.0,0.001147]
[1641173118035,0.55292682,46992.0,46991.0,0.001147]
[1641173118435,1.67392682,46992.0,46991.0,0.001147]
[1641173118634,1.67520461,46992.0,46991.0,0.001147]
[1641173119034,1.68381461,46992.0,46991.0,0.001147]
[1641173119234,1.73381461,46992.0,46991.0,0.001147]
[1641173119636,1.71236183,46992.0,46991.0,0.001147]
[1641173120438,1.84896935,46992.0,46991.0,0.001147]
[1641173120639,2.40251537,46992.0,46991.0,0.001147]
[1641173121897,2.40124254,46992.0,46991.0,0.001147]
[1641173122496,2.40628249,46992.0,46991.0,0.001147]
[1641173123799,2.40628249,46992.0,46991.0,0.211147]
[1641173124400,2.40628249,46992.0,46989.0,0.01070303]
[1641173124401,1.17,46990.0,46989.0,0.01070303]
[1641173124601,1.466991,46989.0,46988.0,0.00022]
[1641173124845,1.55216081,46989.0,46988.0,0.00022]
[1641173125034,1.65216081,46989.0,46988.0,0.00022]
[1641173127235,1.65216081,46989.0,46984.0,0.00044]
[1641173127236,1.17,46988.0,46984.0,0.00044]
[1641173127436,0.345991,46985.0,46984.0,0.00044]
[1641173127636,1.74348139,46985.0,46984.0,0.00044]
[1641173127936,1.466991,46985.0,46984.0,0.00044]
[1641173128137,1.60359852,46985.0,46984.0,0.00044]
[1641173129482,1.60359852,46985.0,46975.0,0.00044]
[1641173129483,0.05322,46981.0,46975.0,0.00044]
[1641173129679,0.05322,46981.0,46973.0,0.00011]
[1641173129680,1.121,46979.0,46973.0,0.00011]
[1641173129880,1.121,46979.0,46974.0,0.10144]
[1641173129881,1.515991,46978.0,46974.0,0.10144]
[1641173130080,1.516991,46978.0,46974.0,0.10144]
[1641173130283,0.3100839,46976.0,46974.0,0.10144]
[1641173130582,0.345991,46975.0,46974.0,0.10144]
[1641173130779,0.345991,46975.0,46974.0,0.1013498]
[1641173130981,0.6745261,46975.0,46974.0,0.1012596]
[1641173131382,0.6745261,46975.0,46974.0,0.1011694]
[1641173131784,0.6745261,46975.0,46974.0,0.1010792]
[1641173132182,0.6745261,46975.0,46974.0,0.100989]
[1641173132621,1.7955261,46975.0,46974.0,0.1008988]
[1641173133025,1.5855261,46975.0,46974.0,0.1008086]
[1641173133231,1.5855261,46975.0,46974.0,0.1007184]
[1641173133830,0.27763829,46968.0,46967.0,0.0003498]
[1641173134026,0.25946825,46968.0,46967.0,0.0003498]
[1641173134226,0.25946825,46968.0,46965.0,0.00055]
[1641173134227,0.25946825,46968.0,46965.0,0.00011]
[1641173134431,0.25946825,46968.0,46962.0,1.18640784]
[1641173134432,1.209469,46967.0,46962.0,1.18640784]
[1641173134627,1.07277,46967.0,46962.0,0.106462]
[1641173134926,0.30946825,46968.0,46962.0,0.1063718]
[1641173135126,0.053231,46966.0,46962.0,0.1063718]
[1641173135327,0.136699,46965.0,46963.0,0.0531368]
[1641173135528,0.136699,46965.0,46963.0,0.0481368]
[1641173135724,0.136699,46965.0,46963.0,0.0480466]
[1641173135925,0.30946825,46968.0,46964.0,0.26542083]
[1641173136168,0.136699,46967.0,46964.0,0.37177663]
[1641173136471,0.136699,46967.0,46965.0,0.053223]
[1641173136868,0.136699,46967.0,46965.0,0.0531328]
[1641173137072,0.126699,46967.0,46965.0,0.0530426]
[1641173137570,0.126699,46967.0,46965.0,0.0529524]
[1641173137769,0.126699,46967.0,46965.0,0.0479524]
[1641173138170,1.128,46966.0,46965.0,0.0479524]
[1641173138373,1.30792696,46966.0,46965.0,0.0479524]
[1641173138573,1.307929,46966.0,46965.0,9.077e-05]
[1641173139371,1.254697,46966.0,46965.0,9.077e-05]
[1641173140051,1.254697,46966.0,46965.0,0.05332077]
[1641173140549,1.254697,46966.0,46965.0,9.077e-05]
[1641173140950,0.126697,46966.0,46965.0,9.077e-05]
[1641173141152,0.126697,46966.0,46965.0,0.05332077]
[1641173141352,1.254697,46966.0,46965.0,0.05332077]
[1641173141552,1.254697,46966.0,46965.0,9.077e-05]
[1641173141953,1.341137,46966.0,46965.0,9.077e-05]
[1641173142955,0.23795576,46962.0,46961.0,0.05136477]
[1641173143156,0.36465276,46962.0,46961.0,0.05136477]
[1641173143575,1.128,46961.0,46960.0,0.00044]
[1641173143774,1.254697,46961.0,46960.0,0.00044]
[1641173143975,0.466697,46960.0,46959.0,0.049116]
[1641173144175,1.30793457,46960.0,46959.0,0.049116]
[1641173144679,1.57697345,46960.0,46959.0,0.049116]
[1641173144875,2.02325608,46960.0,46959.0,0.049116]
[1641173145074,1.7542172,46960.0,46959.0,0.049116]
[1641173145275,0.57297963,46960.0,46959.0,0.049116]
[1641173146477,0.62621332,46960.0,46959.0,0.049116]
[1641173146676,1.74546305,46960.0,46959.0,0.049116]
[1641173146881,1.74546305,46960.0,46958.0,0.00044]
[1641173147734,1.75327595,46960.0,46958.0,0.00044]
[1641173148133,1.75327595,46960.0,46958.0,0.053676]
[1641173148333,1.75327595,46960.0,46958.0,0.00044]
[1641173149136,1.75327595,46960.0,46959.0,7.25e-05]
[1641173149336,1.74546305,46960.0,46959.0,7.25e-05]
[1641173149940,1.7520791,46960.0,46959.0,7.25e-05]
[1641173150136,2.00681833,46960.0,46959.0,7.25e-05]
[1641173150340,2.00681833,46960.0,46958.0,0.053677]
[1641173150341,1.95498636,46960.0,46958.0,0.053347]
[1641173150542,1.95256636,46960.0,46959.0,0.00022]
[1641173150741,1.69782713,46960.0,46959.0,0.00022]
[1641173152872,0.56982713,46960.0,46959.0,0.00022]
[1641173153273,0.55206953,46960.0,46959.0,0.00022]
[1641173154072,0.1057869,46960.0,46959.0,0.00022]
[1641173154276,0.00861,46961.0,46959.0,0.00022]
[1641173154476,0.00861,46961.0,46960.0,0.346442]
[1641173154843,0.00861,46961.0,46960.0,0.393842]
[1641173156044,0.00825625,46965.0,46960.0,1.24651036]
[1641173156240,1.933381,46975.0,46970.0,0.00124866]
[1641173156441,1.921281,46975.0,46973.0,0.5923]
[1641173156639,1.921281,46975.0,46974.0,0.06079248]
[1641173156840,1.495702,46975.0,46974.0,0.38634339]
[1641173157039,1.495702,46975.0,46974.0,0.38625319]
[1641173157240,1.495702,46975.0,46974.0,0.37277051]
[1641173157442,1.495702,46975.0,46974.0,0.42597051]
[1641173157848,1.495702,46975.0,46974.0,0.42588031]
[1641173158042,1.495702,46975.0,46974.0,0.42579011]
[1641173158243,1.495702,46975.0,46974.0,0.43909239]
[1641173158442,1.495702,46975.0,46974.0,0.74522776]
[1641173158681,1.495702,46975.0,46974.0,0.74513756]
[1641173158886,1.495702,46975.0,46974.0,0.74504736]
[1641173159083,1.495702,46975.0,46974.0,0.42542931]
[1641173159485,1.495702,46975.0,46974.0,0.42533911]
[1641173159684,1.495702,46975.0,46974.0,0.42524891]
[1641173159884,1.495702,46975.0,46974.0,0.42516233]
[1641173160490,1.485702,46975.0,46974.0,0.42516233]
[1641173160685,1.060104,46975.0,46974.0,0.71617911]
[1641173160886,1.060104,46975.0,46974.0,0.77255115]
[1641173161285,0.634507,46975.0,46974.0,0.77246095]
[1641173161686,0.00861,46977.0,46975.0,1.17]
[1641173161887,0.00861,46977.0,46976.0,1.26530118]
[1641173162087,0.59727531,46990.0,46978.0,0.0011307]
[1641173162345,0.59727531,46995.0,46988.0,0.00126631]
[1641173162534,0.59727531,46995.0,46989.0,0.0474]
[1641173162736,0.28485816,46992.0,46989.0,0.0474]
[1641173162936,0.105896,46991.0,46989.0,0.0474]
[1641173163334,0.105896,46991.0,46990.0,0.106382]
[1641173163534,0.00861,46993.0,46990.0,0.153782]
[1641173163735,0.45879518,46991.0,46990.0,0.15499466]
[1641173165237,0.44879518,46991.0,46990.0,0.15499466]
[1641173166282,0.44879518,46991.0,46990.0,0.153782]
[1641173169185,0.00861,46993.0,46990.0,0.153782]
[1641173170841,0.32091882,46993.0,46990.0,0.153782]
[1641173171038,0.45414824,46992.0,46990.0,0.153782]
[1641173171638,0.105896,46992.0,46990.0,0.153782]
[1641173172039,0.105896,46992.0,46990.0,0.106382]
[1641173174887,0.105896,46992.0,46990.0,0.43211304]
[1641173175388,0.00861,46993.0,46990.0,0.43211304]
[1641173176090,0.00861,46993.0,46990.0,0.45870904]
[1641173177088,0.00861,46993.0,46990.0,0.49594248]
[1641173177339,0.00861,46993.0,46991.0,0.05319]
[1641173179628,0.00861,46993.0,46992.0,0.346278]
[1641173180228,0.00861,46993.0,46992.0,0.393678]
[1641173184381,0.59340753,47002.0,46995.0,0.00861]
[1641173184580,0.59340753,47003.0,47001.0,0.00124555]
[1641173184841,0.59340753,47003.0,47002.0,0.04864849]
[1641173185029,0.59340753,47003.0,47002.0,0.11326849]
[1641173185227,0.59340753,47003.0,47002.0,0.42442905]
[1641173185429,0.72333595,47005.0,47002.0,0.42442905]
[1641173185430,0.00861,47004.0,47002.0,0.42442905]
[1641173185828,0.00868303,47004.0,47003.0,0.346278]
[1641173186029,0.00868303,47004.0,47003.0,0.393678]
[1641173191288,7.303e-05,47004.0,47003.0,0.393678]
[1641173191506,7.303e-05,47004.0,47003.0,0.44811015]
[1641173191789,0.00814515,47008.0,47003.0,0.44811015]
[1641173191790,0.00814515,47008.0,47006.0,1.04]
[1641173191988,0.00814515,47008.0,47007.0,0.39489374]
[1641173192189,0.002,47009.0,47007.0,0.49489374]
[1641173192441,0.002,47009.0,47008.0,0.505761]
[1641173192643,0.002,47009.0,47008.0,0.653161]
[1641173192840,0.00209129,47009.0,47008.0,0.653161]
[1641173193041,0.00814509,47016.0,47008.0,0.653161]
[1641173193042,0.00814509,47016.0,47008.0,1.245461]
[1641173193242,0.00814509,47016.0,47015.0,0.00129661]
[1641173193444,0.00814509,47016.0,47015.0,0.46509961]
[1641173194346,0.33613691,47017.0,47015.0,0.46509961]
[1641173194545,0.33613691,47017.0,47015.0,0.20688]
[1641173195943,0.00877432,47018.0,47015.0,0.20688]
[1641173196180,0.00877432,47018.0,47016.0,0.346278]
[1641173196380,0.00014606,47017.0,47016.0,0.346278]
[1641173197081,0.33420841,47017.0,47016.0,0.346278]
[1641173197281,0.33420841,47017.0,47015.0,0.20688]
[1641173197680,0.0001278,47016.0,47015.0,0.20688]
[1641173198282,0.0001278,47016.0,47015.0,0.72591308]
[1641173200826,0.0001278,47016.0,47015.0,0.72712708]
[1641173203126,0.0001278,47016.0,47015.0,0.448047]
[1641173227677,0.00861,47018.0,47015.0,0.448047]
[1641173227873,0.00861,47018.0,47015.0,0.1921375]
[1641173228073,0.00014606,47017.0,47015.0,0.1921375]
[1641173228274,0.00014606,47017.0,47016.0,0.346278]
[1641173228475,0.00861,47018.0,47016.0,0.393678]
[1641173231325,0.002,47019.0,47016.0,0.393678]
[1641173231326,0.002,47019.0,47018.0,0.03682199]
[1641173231528,0.59340753,47028.0,47024.0,0.00121959]
[1641173231724,0.59340753,47028.0,47025.0,0.0474]
[1641173231925,0.002,47029.0,47025.0,0.0474]
[1641173232322,0.0003469,47028.0,47026.0,0.2696977]
[1641173232522,0.0003469,47028.0,47027.0,0.0474]
[1641173232723,0.002,47029.0,47027.0,0.08460175]
[1641173232927,0.002,47029.0,47027.0,0.11117475]
[1641173233122,0.002,47029.0,47027.0,0.16117475]
[1641173233323,0.002,47029.0,47028.0,0.346278]
[1641173233576,0.002,47029.0,47028.0,0.393678]
[1641173233775,0.00236516,47029.0,47028.0,0.393678]
[1641173234174,0.00236516,47029.0,47028.0,0.446823]
[1641173237851,0.00236516,47029.0,47028.0,0.72350876]
[1641173239449,0.00236516,47029.0,47028.0,0.446823]
[1641173240055,0.59340753,47038.0,47037.0,0.00128023]
[1641173240254,0.59340753,47038.0,47037.0,0.64098023]
[1641173240456,0.59340753,47038.0,47037.0,0.74116479]
[1641173240651,0.59340753,47038.0,47037.0,0.84116479]
[1641173240652,0.16838453,47038.0,47037.0,0.84116479]
[1641173240854,0.01061,47039.0,47037.0,0.84116479]
[1641173240855,0.01061,47039.0,47037.0,1.18744279]
[1641173241088,0.01061,47039.0,47038.0,0.346278]
[1641173241289,0.01061,47039.0,47038.0,0.393678]
[1641173241492,0.01079257,47039.0,47038.0,0.393678]
[1641173241689,0.33650709,47039.0,47038.0,0.0474]
[1641173241891,0.33650709,47039.0,47037.0,0.053133]
[1641173242290,0.00016432,47038.0,47037.0,0.053133]
[1641173242487,0.32986501,47038.0,47037.0,0.106276]
[1641173242888,0.32986501,47038.0,47036.0,0.60419628]
[1641173243190,0.25357996,47037.0,47036.0,0.60419628]
[1641173243389,0.35947596,47037.0,47036.0,0.60419628]
[1641173243587,0.105896,47037.0,47036.0,0.60419628]
[1641173243789,0.59992926,47038.0,47036.0,0.60419628]
[1641173243988,0.105896,47037.0,47036.0,0.60419628]
[1641173244187,0.32986501,47038.0,47036.0,0.60419628]
[1641173245333,0.29509784,47039.0,47036.0,0.60419628]
[1641173245533,0.34509784,47039.0,47036.0,0.60419628]
[1641173245733,0.34509784,47039.0,47036.0,0.65734128]
[1641173245937,0.34509784,47039.0,47036.0,0.68391328]
[1641173246133,0.29509784,47039.0,47036.0,0.68391328]
[1641173247335,0.008609,47039.0,47036.0,0.68391328]
[1641173248593,0.32548811,47044.0,47036.0,0.68391328]
[1641173248594,0.32548811,47044.0,47039.0,0.05314]
[1641173248790,0.00813417,47044.0,47039.0,0.05314]
[1641173249090,7.303e-05,47042.0,47041.0,0.31659298]
[1641173249491,7.303e-05,47042.0,47038.0,0.106279]
[1641173249691,7.303e-05,47042.0,47041.0,0.053137]
[1641173249891,0.34636186,47042.0,47041.0,0.053137]
[1641173250895,0.45225786,47042.0,47037.0,0.06128112]
[1641173251097,0.105896,47041.0,47037.0,0.00813412]
[1641173252345,0.105896,47041.0,47036.0,0.60419628]
[1641173252837,0.105896,47041.0,47038.0,0.053145]
[1641173256292,0.105896,47041.0,47038.0,0.106289]
[1641173257089,0.105896,47041.0,47038.0,0.053145]
[1641173257292,0.29752377,47039.0,47036.0,0.65734328]
[1641173258092,0.29752377,47039.0,47037.0,0.053146]
[1641173258593,0.29752377,47039.0,47036.0,0.65734328]
[1641173258795,0.29752377,47039.0,47036.0,0.60419628]
[1641173260250,0.995896,47037.0,47036.0,0.60419628]
[1641173260452,1.275896,47037.0,47036.0,0.60419628]
[1641173260652,1.525896,47037.0,47036.0,0.60419628]
[1641173261053,1.66250352,47037.0,47036.0,0.60419628]
[1641173261251,1.28250352,47037.0,47036.0,0.60419628]
[1641173261652,0.25596178,47037.0,47036.0,0.60419628]
[1641173262052,0.15596178,47037.0,47036.0,0.60419628]
[1641173262252,0.65596178,47037.0,47036.0,0.60419628]
[1641173262452,0.8925693,47037.0,47036.0,0.60419628]
[1641173262653,0.4925693,47037.0,47036.0,0.60419628]
[1641173262855,0.3925693,47037.0,47036.0,0.60419628]
[1641173263697,0.2925693,47037.0,47036.0,0.60419628]
[1641173266002,0.2425693,47037.0,47036.0,0.60419628]
[1641173267438,0.2925693,47037.0,47036.0,0.60419628]
[1641173268237,0.6325693,47037.0,47036.0,0.60419628]
[1641173268637,0.7325693,47037.0,47036.0,0.60419628]
[1641173268838,0.3925693,47037.0,47036.0,0.60419628]
[1641173269639,0.2925693,47037.0,47036.0,0.60419628]
[1641173269839,0.3925693,47037.0,47036.0,0.60419628]
[1641173272098,0.2425693,47037.0,47036.0,0.60419628]
[1641173272298,0.2925693,47037.0,47036.0,0.60419628]
[1641173272797,0.15596178,47037.0,47036.0,0.60419628]
[1641173273799,0.05006578,47037.0,47036.0,0.60419628]
[1641173273999,6.578e-05,47037.0,47036.0,0.60419628]
[1641173274199,0.59804216,47037.0,47036.0,0.60419628]
[1641173274403,0.64804216,47037.0,47036.0,0.60419628]
[1641173275348,0.05006578,47037.0,47036.0,0.60419628]
[1641173275547,6.578e-05,47037.0,47036.0,0.60419628]
[1641173277349,0.72331044,47037.0,47036.0,0.60419628]
[1641173277851,0.77331044,47037.0,47036.0,0.60419628]
[1641173278051,0.05006578,47037.0,47036.0,0.60419628]
[1641173278450,6.578e-05,47037.0,47036.0,0.60419628]
[1641173280622,0.73524897,47037.0,47036.0,0.60419628]
[1641173281020,0.78524897,47037.0,47036.0,0.60419628]
[1641173283847,0.59864145,47037.0,47036.0,0.60419628]
[1641173284047,6.578e-05,47037.0,47036.0,0.60419628]
[1641173286079,0.59865664,47037.0,47036.0,0.60419628]
[1641173286481,0.70455264,47037.0,47036.0,0.60419628]
[1641173287184,0.10596178,47037.0,47036.0,0.60419628]
[1641173287985,6.578e-05,47037.0,47036.0,0.60419628]
[1641173289691,0.10596178,47037.0,47036.0,0.60419628]
[1641173289944,0.39214833,47037.0,47036.0,0.60419628]
[1641173290841,1.12695364,47037.0,47036.0,0.60419628]
[1641173291642,0.52875585,47037.0,47036.0,0.60419628]
[1641173292842,0.10596178,47037.0,47036.0,0.60419628]
[1641173304854,0.10596178,47037.0,47036.0,0.59930629]
[1641173311595,6.578e-05,47037.0,47036.0,0.59930629]
[1641173321742,0.27355921,47037.0,47036.0,0.59930629]
[1641173321945,0.37945521,47037.0,47036.0,0.59930629]
[1641173322144,0.10596178,47037.0,47036.0,0.59930629]
[1641173327087,0.37803281,47037.0,47036.0,0.59930629]
[1641173329043,0.10596178,47037.0,47036.0,0.59930629]
[1641173335540,6.578e-05,47037.0,47036.0,0.59930629]
[1641173335743,6.578e-05,47037.0,47036.0,0.72489629]
[1641173335744,0.59826357,47037.0,47036.0,0.72489629]
[1641173335943,0.59826357,47037.0,47036.0,0.77359521]
[1641173336147,0.59826357,47037.0,47036.0,1.11987321]
[1641173336341,6.578e-05,47037.0,47036.0,1.11987321]
[1641173336545,6.578e-05,47037.0,47036.0,1.13326569]
[1641173337543,6.578e-05,47037.0,47036.0,1.53114614]
[1641173337944,6.578e-05,47037.0,47036.0,1.68114614]
[1641173338142,6.578e-05,47037.0,47036.0,1.66775366]
[1641173340991,6.578e-05,47037.0,47036.0,1.51775366]
[1641173341592,6.578e-05,47037.0,47036.0,1.46775366]
[1641173342763,6.578e-05,47037.0,47036.0,1.51775366]
[1641173343966,6.578e-05,47037.0,47036.0,1.17147566]
[1641173344165,6.578e-05,47037.0,47036.0,1.12147566]
[1641173344963,6.578e-05,47037.0,47036.0,0.72359521]
[1641173345163,6.578e-05,47037.0,47036.0,0.64800521]
[1641173345565,6.578e-05,47037.0,47036.0,0.99428321]
[1641173345768,6.578e-05,47037.0,47036.0,1.04428321]
[1641173346909,6.578e-05,47037.0,47036.0,1.42882897]
[1641173352354,6.578e-05,47037.0,47036.0,1.42753005]
[1641173353607,6.578e-05,47037.0,47036.0,1.37753005]
[1641173353810,6.578e-05,47037.0,47036.0,0.98385205]
[1641173354608,0.27305894,47037.0,47036.0,0.59930629]
[1641173354814,6.578e-05,47037.0,47036.0,0.59930629]
[1641173355309,6.578e-05,47037.0,47036.0,1.20310991]
[1641173356409,6.578e-05,47037.0,47036.0,0.59930629]
[1641173356817,0.10596178,47037.0,47036.0,0.59930629]
[1641173357013,1.5289164,47037.0,47036.0,0.59930629]
[1641173358666,0.4009164,47037.0,47036.0,0.59930629]
[1641173359472,0.10596178,47037.0,47036.0,0.59930629]
[1641173360067,6.578e-05,47037.0,47036.0,0.59930629]
[1641173366983,6.578e-05,47037.0,47036.0,0.87362333]
[1641173367181,6.578e-05,47037.0,47036.0,1.21990133]
[1641173370296,6.578e-05,47037.0,47036.0,0.94058429]
[1641173370898,6.578e-05,47037.0,47036.0,1.21543566]
[1641173371097,6.578e-05,47037.0,47036.0,0.94058429]
[1641173371799,6.578e-05,47037.0,47036.0,1.21475941]
[1641173372360,6.578e-05,47037.0,47036.0,1.26215941]
[1641173372553,6.578e-05,47037.0,47036.0,1.26344702]
[1641173374352,6.578e-05,47037.0,47036.0,1.27067249]
[1641173374850,6.578e-05,47037.0,47036.0,1.32067249]
[1641173375753,6.578e-05,47037.0,47036.0,1.04649737]
[1641173376697,6.578e-05,47037.0,47036.0,1.3206047]
[1641173379202,6.578e-05,47037.0,47036.0,1.04649737]
[1641173379504,6.578e-05,47037.0,47036.0,1.3209358]
[1641173379945,6.578e-05,47037.0,47036.0,1.2709358]
[1641173380550,6.578e-05,47037.0,47036.0,1.3547858]
[1641173380750,0.5115901,47045.0,47037.0,1.56454367]
[1641173380950,0.01,47054.0,47044.0,0.59358911]
[1641173381149,0.01,47054.0,47050.0,0.02766]
[1641173381348,0.01,47054.0,47053.0,0.00128559]
[1641173381548,0.01,47054.0,47053.0,0.26652595]
[1641173381947,0.01,47054.0,47053.0,0.61280395]
[1641173383250,0.01,47054.0,47053.0,0.66280395]
[1641173383451,0.01,47054.0,47053.0,1.28742349]
[1641173383910,0.01,47054.0,47053.0,1.38742349]
[1641173384109,0.01,47054.0,47053.0,1.43742349]
[1641173384911,0.01,47054.0,47053.0,1.44464896]
[1641173386515,0.01,47054.0,47053.0,0.9236005]
[1641173386716,0.01,47054.0,47053.0,0.75576014]
[1641173386916,0.01,47054.0,47053.0,0.35948214]
[1641173387117,0.01,47054.0,47053.0,0.05591106]
[1641173387862,0.01,47054.0,47053.0,0.05462547]
[1641173389363,0.32854856,47054.0,47053.0,0.00722547]
[1641173389562,0.43444456,47054.0,47053.0,0.00722547]
[1641173390362,0.72737499,47054.0,47053.0,0.00722547]
[1641173390567,0.72737499,47054.0,47052.0,0.00722547]
[1641173390763,0.105896,47053.0,47052.0,0.00722547]
[1641173390963,0.10616986,47053.0,47052.0,0.00722547]
[1641173394851,0.89616986,47053.0,47052.0,0.00722547]
[1641173395351,0.70979666,47053.0,47052.0,0.00722547]
[1641173395754,0.53616986,47053.0,47052.0,0.00722547]
[1641173395951,1.31365245,47053.0,47051.0,0.00722547]
[1641173396152,0.915896,47052.0,47051.0,0.00722547]